[Event "POL-chT 2 Liga 2019"]
[Site "Poronin"]
[Date "2019.09.12"]
[Round "6.29"]
[White "Chrobak, Piotr"]
[Black "Koloczek, Maciej"]
[Result "0-1"]
[ECO "C01"]
[WhiteElo "1713"]
[BlackElo "1932"]
[Annotator "NA"]
[PlyCount "128"]
[EventDate "2019.09.07"]
[EventType "team-tourn"]
[EventCountry "POL"]
[SourceTitle "playchess.com"]
[Source "ChessBase"]
[SourceQuality "1"]
[TimeControl "40/5400+30:1800+30"]

1. e4 {[%emt 0:00:00]} e6 {[%emt 0:00:00]} 2. d4 {[%emt 0:00:18]} d5 {[%emt 0:00:00]} 3. exd5 {[%emt 0:00:47]} exd5 {[%emt 0:00:00]} 4. c4 {[%emt 0:01:08]} Nf6 {[%emt 0:00:07]} 5. Nc3 {[%emt 0:00:33]} Bb4 {[%emt 0:00:26]} 6. Be2 {[%emt 0:03:06]} O-O {[%emt 0:01:25]} 7. c5 {[%emt 0:01:08]} b6 {[%emt 0:08:18]} 8. cxb6 {[%emt 0:01:31]} axb6 {[%emt 0:00:13]} 9. Nf3 {[%emt 0:00:39]} Ne4 {[%emt 0:16:14]} 10. Qc2 {[%emt 0:05:15]} Bf5 {[%emt 0:06:47]} 11. Bd3 {[%emt 0:01:09]} c5 {[%emt 0:05:09]} 12. O-O {[%emt 0:10:25]} Bxc3 {[%emt 0:14:29]} 13. bxc3 {[%emt 0:00:53]} c4 {[%emt 0:00:12]} 14. Bxe4 {[%emt 0:05:00]} Bxe4 {[%emt 0:00:08]} 15. Qd1 {[%emt 0:00:05]} Bxf3 {[%emt 0:01:41]} 16. Qxf3 {[%emt 0:00:21]} Nc6 {[%emt 0:00:55]} 17. Qd1 {[%emt 0:25:44]} Ra7 {[%emt 0:04:56]} 18. Re1 {[%emt 0:01:55]} Qd7 {[%emt 0:05:10]} 19. Qc2 {[%emt 0:02:41]} Rfa8 {[%emt 0:01:21]} 20. a3 {[%emt 0:02:47]} Na5 {[%emt 0:04:15]} 21. Bb2 {[%emt 0:06:30]} Nb7 {[%emt 0:00:51]} 22. Re5 {[%emt 0:02:02]} f6 {[%emt 0:03:16]} 23. Re3 {[%emt 0:12:10]} Re8 {[%emt 0:08:03]} 24. Rae1 {[%emt 0:01:22]} Rxe3 {[%emt 0:01:27]} 25. Rxe3 {[%emt 0:00:25]} Nd6 {[%emt 0:01:31]} 26. Re1 {[%emt 0:03:43]} g6 {[%emt 0:01:47]} 27. Qe2 {[%emt 0:01:41]} Kf7 {[%emt 0:01:24]} 28. Qd2 {[%emt 0:01:57]} Nf5 {[%emt 0:01:39]} 29. Bc1 {[%emt 0:02:18]} Ra5 {[%emt 0:03:31]} 30. Qf4 {[%emt 0:01:39]} Qd6 {[%emt 0:01:15]} 31. Qd2 {[%emt 0:01:18]} h5 {[%emt 0:02:53]} 32. Qe2 {[%emt 0:01:01]} Qd7 {[%emt 0:00:23]} 33. g4 {[%emt 0:03:05]} Ng7 {[%emt 0:03:37]} 34. h3 {[%emt 0:01:09]} hxg4 {[%emt 0:00:25]} 35. hxg4 {[%emt 0:00:01]} Ra8 {[%emt 0:00:53]} 36. Qf3 {[%emt 0:00:29]} Rh8 {[%emt 0:00:51]} 37. Kg2 {[%emt 0:00:43]} Rh4 {[%emt 0:01:49]} 38. g5 {[%emt 0:00:20]} Rg4+ {[%emt 0:01:07]} 39. Kf1 {[%emt 0:00:31]} Qf5 {[%emt 0:00:30]} 40. Qxf5 {[%emt 0:00:00]} Nxf5 {[%emt 0:00:00]} 41. gxf6 {[%emt 0:00:40]} Kxf6 {[%emt 0:04:24]} 42. Re8 {[%emt 0:02:10]} Re4 {[%emt 0:02:23]} 43. Rd8 {[%emt 0:03:39]} Ne7 {[%emt 0:00:34]} 44. Rd6+ {[%emt 0:01:49]} Re6 {[%emt 0:02:15]} 45. Bg5+ {[%emt 0:01:57]} Kf5 {[%emt 0:00:33]} 46. Bxe7 {[%emt 0:02:03]} Rxe7 {[%emt 0:00:08]} 47. Rxd5+ {[%emt 0:00:17]} Ke4 {[%emt 0:00:12]} 48. Rg5 {[%emt 0:01:37]} Kd3 {[%emt 0:01:11]} 49. Rg3+ {[%emt 0:14:48]} Kc2 {[%emt 0:01:02]} 50. a4 {[%emt 0:03:15]} Ra7 {[%emt 0:09:02]} 51. d5 {[%emt 0:02:55]} Rd7 {[%emt 0:03:47]} 52. Rxg6 {[%emt 0:01:10]} Kxc3 {[%emt 0:00:02]} 53. Rxb6 {[%emt 0:00:22]} Kd2 {[%emt 0:02:22]} 54. Rb2+ {[%emt 0:01:42]} Kd3 {[%emt 0:00:42]} 55. a5 {[%emt 0:00:37]} c3 {[%emt 0:00:41]} 56. Rb6 {[%emt 0:00:09]} c2 {[%emt 0:03:35]} 57. Rc6 {[%emt 0:00:17]} Kd2 {[%emt 0:00:08]} 58. f4 {[%emt 0:01:03]} Rf7 {[%emt 0:00:53]} 59. a6 {[%emt 0:00:36]} Rxf4+ {[%emt 0:01:36]} 60. Kg2 {[%emt 0:00:01]} c1=Q {[%emt 0:00:53]} 61. Rxc1 {[%emt 0:00:40]} Kxc1 {[%emt 0:00:17]} 62. d6 {[%emt 0:00:51]} Kd2 {[%emt 0:00:32]} 63. a7 {[%emt 0:00:31]} Rf8 {[%emt 0:00:08]} 64. d7 {[%emt 0:00:25]} Ke3 {[%emt 0:00:07]} 0-1

[Event "POL-chT 2 Liga 2019"]
[Site "Poronin"]
[Date "2019.09.12"]
[Round "6.30"]
[White "Adamczyk, Zuzanna"]
[Black "Suchanek, Paulina"]
[Result "1-0"]
[ECO "C10"]
[WhiteElo "1938"]
[BlackElo "1574"]
[Annotator "NA"]
[PlyCount "45"]
[EventDate "2019.09.07"]
[EventType "team-tourn"]
[EventCountry "POL"]
[SourceTitle "playchess.com"]
[Source "ChessBase"]
[SourceQuality "1"]
[TimeControl "40/5400+30:1800+30"]

1. e4 {[%emt 0:00:00]} e6 {[%emt 0:00:00]} 2. d4 {[%emt 0:00:00]} d5 {[%emt 0:00:00]} 3. Nd2 {[%emt 0:00:10]} dxe4 {[%emt 0:00:05]} 4. Nxe4 {[%emt 0:00:21]} Bd7 {[%emt 0:00:39]} 5. Nf3 {[%emt 0:07:21]} Bc6 {[%emt 0:03:05]} 6. Bd3 {[%emt 0:05:04]} Nd7 {[%emt 0:03:18]} 7. Qe2 {[%emt 0:12:15]} b6 {[%emt 0:06:10]} 8. Neg5 {[%emt 0:12:29]} h6 {[%emt 0:13:47]} 9. Nxe6 {[%emt 0:30:06]} fxe6 {[%emt 0:09:56]} 10. Bg6+ {[%emt 0:00:46]} Ke7 {[%emt 0:00:08]} 11. Bf5 {[%emt 0:04:24]} Ke8 {[%emt 0:07:02]} 12. Bxe6 {[%emt 0:07:51]} Qe7 {[%emt 0:06:00]} 13. d5 {[%emt 0:00:38]} Bb7 {[%emt 0:01:31]} 14. Nd4 {[%emt 0:01:17]} Ngf6 {[%emt 0:09:58]} 15. c4 {[%emt 0:06:22]} Kd8 {[%emt 0:08:04]} 16. O-O {[%emt 0:01:01]} Qd6 {[%emt 0:10:27]} 17. Re1 {[%emt 0:02:01]} Qe7 {[%emt 0:16:18]} 18. Nf5 {[%emt 0:02:26]} Qe8 {[%emt 0:00:27]} 19. Bf4 {[%emt 0:01:57]} Bb4 {[%emt 0:01:13]} 20. Red1 {[%emt 0:01:10]} g5 {[%emt 0:00:57]} 21. Be5 {[%emt 0:01:03]} Nxe5 {[%emt 0:00:39]} 22. Qxe5 {[%emt 0:00:26]} Bc8 {[%emt 0:00:39]} 23. Qxf6+ 1-0

[Event "POL-chT 2 Liga 2019"]
[Site "Poronin"]
[Date "2019.09.12"]
[Round "6.31"]
[White "Pakleza, Zbigniew"]
[Black "Miroslaw, Michal"]
[Result "1/2-1/2"]
[ECO "B11"]
[WhiteElo "2491"]
[BlackElo "2284"]
[Annotator "ChessBase"]
[PlyCount "104"]
[EventDate "2019.09.07"]
[EventType "team-tourn"]
[EventCountry "POL"]
[SourceTitle "playchess.com"]
[Source "ChessBase"]
[SourceQuality "1"]
[TimeControl "40/5400+30:1800+30"]

1. e4 {[%emt 0:00:00]} c6 {[%emt 0:00:00]} 2. Nf3 {[%emt 0:00:00]} d5 {[%emt 0:00:01]} 3. Nc3 {[%emt 0:00:00]} Bg4 {[%emt 0:00:35]} 4. h3 {[%emt 0:00:31]} Bxf3 {[%emt 0:00:21]} 5. Qxf3 {[%emt 0:00:02]} e6 {[%emt 0:00:20]} 6. d4 {[%emt 0:00:13]} Nd7 {[%emt 0:08:52]} 7. Bd3 {[%emt 0:01:51]} dxe4 {[%emt 0:00:50]} 8. Nxe4 {[%emt 0:00:33]} Ngf6 {[%emt 0:00:14]} 9. c3 {[%emt 0:07:12]} Nxe4 {[%emt 0:03:36]} 10. Qxe4 {[%emt 0:00:31]} Nf6 {[%emt 0:00:28]} 11. Qe2 {[%emt 0:00:13]} Bd6 {[%emt 0:02:43]} 12. Bd2 {[%emt 0:14:16]} Qc7 {[%emt 0:03:30]} 13. g3 {[%emt 0:06:29]} O-O-O {[%emt 0:08:22]} 14. O-O-O {[%emt 0:00:47]} h6 {[%emt 0:05:01]} 15. Bc2 {[%emt 0:07:45]} e5 {[%emt 0:08:07]} 16. dxe5 {[%emt 0:09:06]} Bxe5 {[%emt 0:00:39]} 17. Rhe1 {[%emt 0:03:08]} Rhe8 {[%emt 0:06:05]} 18. Qf3 {[%emt 0:01:56]} Kb8 {[%emt 0:16:09]} 19. Bb3 {[%emt 0:00:45]} Ka8 {[%emt 0:01:49]} 20. Re2 {[%emt 0:12:09]} Rd7 {[%emt 0:03:59]} 21. Rde1 {[%emt 0:00:37]} Rde7 {[%emt 0:00:11]} 22. Qd3 {[%emt 0:11:54]} Bd6 {[%emt 0:04:59]} 23. Rxe7 {[%emt 0:04:09]} Rxe7 {[%emt 0:00:09]} 24. Rxe7 {[%emt 0:00:08]} Qxe7 {[%emt 0:00:24]} 25. Bxf7 {[%emt 0:01:31]} Ne4 {[%emt 0:05:47]} 26. Be3 {[%emt 0:00:34]} Bc5 {[%emt 0:04:17]} 27. Bxc5 {[%emt 0:04:04]} Nxc5 {[%emt 0:00:15]} 28. Qe3 {[%emt 0:03:52]} Qxf7 {[%emt 0:04:01]} 29. Qxc5 {[%emt 0:00:01]} a6 {[%emt 0:00:28]} 30. a3 {[%emt 0:01:40]} g5 {[%emt 0:03:26]} 31. Qd4 {[%emt 0:00:51]} Qe6 {[%emt 0:02:22]} 32. h4 {[%emt 0:00:51]} g4 {[%emt 0:00:21]} 33. Qd8+ {[%emt 0:05:55]} Ka7 {[%emt 0:00:06]} 34. Qd4+ {[%emt 0:00:02]} Ka8 {[%emt 0:00:22]} 35. Qe3 {[%emt 0:01:34]} Qc4 {[%emt 0:02:22]} 36. Kc2 {[%emt 0:01:01]} Qa4+ {[%emt 0:00:56]} 37. Kd2 {[%emt 0:01:06]} Qb3 {[%emt 0:00:44]} 38. Kc1 {[%emt 0:00:30]} Qc4 {[%emt 0:00:08]} 39. h5 {[%emt 0:00:17]} Qb5 {[%emt 0:01:46]} 40. Qe8+ {[%emt 0:00:00]} Ka7 {[%emt 0:00:00]} 41. Qf7 {[%emt 0:14:58]} Qf1+ {[%emt 0:12:33]} 42. Kc2 {[%emt 0:00:40]} Qb5 {[%emt 0:02:33]} 43. Kb1 {[%emt 0:08:42]} a5 {[%emt 0:04:28]} 44. c4 {[%emt 0:06:17]} Qc5 {[%emt 0:01:25]} 45. Kc2 {[%emt 0:01:47]} Qe5 {[%emt 0:01:52]} 46. Kb3 {[%emt 0:01:28]} a4+ {[%emt 0:00:26]} 47. Ka2 {[%emt 0:00:37]} Qc5 {[%emt 0:00:55]} 48. b3 {[%emt 0:00:41]} axb3+ {[%emt 0:01:43]} 49. Kxb3 {[%emt 0:00:01]} Qb6+ {[%emt 0:01:31]} 50. Kc2 {[%emt 0:00:05]} Qc5 {[%emt 0:00:57]} 51. Kb3 {[%emt 0:01:19]} Qb6+ {[%emt 0:00:10]} 52. Ka2 {[%emt 0:00:06]} Qc5 {[%emt 0:00:47]} 1/2-1/2

[Event "POL-chT 2 Liga 2019"]
[Site "Poronin"]
[Date "2019.09.12"]
[Round "6.32"]
[White "Pyda, Zbigniew"]
[Black "Jakubiec, Artur"]
[Result "0-1"]
[ECO "A87"]
[WhiteElo "2322"]
[BlackElo "2472"]
[Annotator "ChessBase"]
[PlyCount "138"]
[EventDate "2019.09.07"]
[EventType "team-tourn"]
[EventCountry "POL"]
[SourceTitle "playchess.com"]
[Source "ChessBase"]
[SourceQuality "1"]
[TimeControl "40/5400+30:1800+30"]

1. d4 {[%emt 0:00:00]} f5 {[%emt 0:00:00]} 2. g3 {[%emt 0:00:00]} Nf6 {[%emt 0:00:04]} 3. Bg2 {[%emt 0:00:03]} g6 {[%emt 0:00:07]} 4. c4 {[%emt 0:00:05]} Bg7 {[%emt 0:00:06]} 5. Nf3 {[%emt 0:00:11]} O-O {[%emt 0:00:08]} 6. b4 {[%emt 0:00:03]} c6 {[%emt 0:01:01]} 7. O-O {[%emt 0:00:34]} d5 {[%emt 0:05:03]} 8. Nbd2 {[%emt 0:07:40]} Ne4 {[%emt 0:03:09]} 9. Qc2 {[%emt 0:04:57]} Be6 {[%emt 0:01:05]} 10. c5 {[%emt 0:03:35]} a5 {[%emt 0:09:16]} 11. bxa5 {[%emt 0:03:01]} Qxa5 {[%emt 0:00:36]} 12. Bb2 {[%emt 0:16:36]} Nd7 {[%emt 0:04:59]} 13. e3 {[%emt 0:03:34]} Qa4 {[%emt 0:09:16]} 14. Rfc1 {[%emt 0:09:16]} Bf7 {[%emt 0:08:02]} 15. Nb3 {[%emt 0:06:17]} Ra7 {[%emt 0:18:59]} 16. Bf1 {[%emt 0:02:29]} g5 {[%emt 0:03:08]} 17. Ne1 {[%emt 0:08:01]} g4 {[%emt 0:03:00]} 18. Nd3 {[%emt 0:03:42]} Bg6 {[%emt 0:01:31]} 19. Nf4 {[%emt 0:04:14]} Ng5 {[%emt 0:00:10]} 20. h4 {[%emt 0:08:22]} gxh3 {[%emt 0:01:10]} 21. Nxh3 {[%emt 0:01:20]} Nf3+ {[%emt 0:05:24]} 22. Kg2 {[%emt 0:01:02]} f4 {[%emt 0:00:27]} 23. Bd3 {[%emt 0:00:24]} Bxd3 {[%emt 0:00:49]} 24. Qxd3 {[%emt 0:00:04]} fxg3 {[%emt 0:00:07]} 25. fxg3 {[%emt 0:00:30]} e5 {[%emt 0:00:38]} 26. Rf1 {[%emt 0:02:14]} e4 {[%emt 0:00:21]} 27. Qe2 {[%emt 0:01:51]} Qc4 {[%emt 0:02:17]} 28. Rf2 {[%emt 0:00:35]} Rfa8 {[%emt 0:03:43]} 29. Nc1 {[%emt 0:03:44]} Nf6 {[%emt 0:02:49]} 30. a3 {[%emt 0:01:46]} Ng4 {[%emt 0:01:16]} 31. Rxf3 {[%emt 0:01:01]} exf3+ {[%emt 0:00:32]} 32. Kxf3 {[%emt 0:00:39]} Qxe2+ {[%emt 0:01:05]} 33. Nxe2 {[%emt 0:01:08]} Nf6 {[%emt 0:00:15]} 34. Nf2 {[%emt 0:01:28]} Re8 {[%emt 0:00:52]} 35. Nc3 {[%emt 0:00:29]} Re7 {[%emt 0:00:28]} 36. Bc1 {[%emt 0:01:52]} Ra8 {[%emt 0:00:40]} 37. Rb1 {[%emt 0:01:20]} Bh6 {[%emt 0:00:35]} 38. Rb3 {[%emt 0:00:45]} Rae8 {[%emt 0:01:20]} 39. Ne2 {[%emt 0:00:39]} Bg5 {[%emt 0:02:00]} 40. Nh3 {[%emt 0:00:00]} h6 {[%emt 0:00:00]} 41. a4 {[%emt 0:02:50]} Ne4 {[%emt 0:06:11]} 42. g4 {[%emt 0:05:25]} Ra8 {[%emt 0:01:20]} 43. Rb4 {[%emt 0:01:02]} Bh4 {[%emt 0:01:19]} 44. Nhf4 {[%emt 0:01:08]} Be1 {[%emt 0:00:38]} 45. Rb2 {[%emt 0:01:45]} Rxa4 {[%emt 0:00:30]} 46. Nd3 {[%emt 0:00:14]} Bh4 {[%emt 0:00:54]} 47. Nef4 {[%emt 0:04:36]} Bg5 {[%emt 0:02:39]} 48. Ng6 {[%emt 0:02:18]} Rf7+ {[%emt 0:01:25]} 49. Kg2 {[%emt 0:00:15]} Ra1 {[%emt 0:01:31]} 50. Rc2 {[%emt 0:00:36]} Kg7 {[%emt 0:02:23]} 51. Nge5 {[%emt 0:02:29]} Re7 {[%emt 0:00:23]} 52. Nf3 {[%emt 0:01:28]} Rb1 {[%emt 0:01:21]} 53. Nde5 {[%emt 0:00:37]} Rb3 {[%emt 0:00:52]} 54. Ra2 {[%emt 0:01:58]} Bf6 {[%emt 0:01:41]} 55. Bd2 {[%emt 0:03:51]} Nxd2 {[%emt 0:01:10]} 56. Rxd2 {[%emt 0:00:07]} Rxe3 {[%emt 0:00:16]} 57. Kf2 {[%emt 0:02:41]} Re4 {[%emt 0:01:24]} 58. Kg3 {[%emt 0:00:33]} Bg5 {[%emt 0:02:53]} 59. Rb2 {[%emt 0:01:44]} Bf4+ {[%emt 0:00:50]} 60. Kh4 {[%emt 0:01:07]} Bxe5 {[%emt 0:01:40]} 61. dxe5 {[%emt 0:00:34]} Kh7 {[%emt 0:01:37]} 62. Kh5 {[%emt 0:01:07]} Rf4 {[%emt 0:01:58]} 63. Rb3 {[%emt 0:01:24]} Rg7 {[%emt 0:02:09]} 64. g5 {[%emt 0:00:54]} Rxf3 {[%emt 0:00:53]} 65. Rxf3 {[%emt 0:00:09]} Rxg5+ {[%emt 0:00:05]} 66. Kh4 {[%emt 0:00:10]} Rxe5 {[%emt 0:00:06]} 67. Rf7+ {[%emt 0:00:11]} Kg6 {[%emt 0:00:06]} 68. Rxb7 {[%emt 0:00:04]} Re4+ {[%emt 0:00:04]} 69. Kg3 {[%emt 0:00:14]} Rc4 {[%emt 0:00:56]} 0-1

[Event "POL-chT 2 Liga 2019"]
[Site "Poronin"]
[Date "2019.09.12"]
[Round "6.33"]
[White "Tymrakiewicz, Rafal"]
[Black "Maka, Marcin"]
[Result "1-0"]
[ECO "B21"]
[WhiteElo "2257"]
[BlackElo "2108"]
[Annotator "NA"]
[PlyCount "91"]
[EventDate "2019.09.07"]
[EventType "team-tourn"]
[EventCountry "POL"]
[SourceTitle "playchess.com"]
[Source "ChessBase"]
[SourceQuality "1"]
[TimeControl "40/5400+30:1800+30"]

1. e4 {[%emt 0:00:28]} c5 {[%emt 0:03:21]} 2. d4 {[%emt 0:02:06]} cxd4 {[%emt 0:01:32]} 3. c3 {[%emt 0:00:36]} dxc3 {[%emt 0:16:42]} 4. Nxc3 {[%emt 0:00:18]} Nc6 {[%emt 0:00:09]} 5. Nf3 {[%emt 0:00:04]} e6 {[%emt 0:04:19]} 6. Bc4 {[%emt 0:02:00]} a6 {[%emt 0:03:22]} 7. O-O {[%emt 0:02:03]} d6 {[%emt 0:03:11]} 8. Qe2 {[%emt 0:05:56]} Nge7 {[%emt 0:13:25]} 9. Bg5 {[%emt 0:06:11]} h6 {[%emt 0:02:40]} 10. Bh4 {[%emt 0:05:02]} Qb6 {[%emt 0:03:32]} 11. Bg3 {[%emt 0:19:16]} Ng6 {[%emt 0:00:24]} 12. Kh1 {[%emt 0:07:57]} Be7 {[%emt 0:01:53]} 13. Rad1 {[%emt 0:03:17]} Nce5 {[%emt 0:07:47]} 14. Bb3 {[%emt 0:00:55]} O-O {[%emt 0:03:49]} 15. Nd2 {[%emt 0:02:32]} Qc7 {[%emt 0:03:28]} 16. f4 {[%emt 0:01:55]} Nc6 {[%emt 0:00:06]} 17. f5 {[%emt 0:15:12]} Nd4 {[%emt 0:03:04]} 18. Qh5 {[%emt 0:00:25]} Ne5 {[%emt 0:09:45]} 19. f6 {[%emt 0:17:24]} Bxf6 {[%emt 0:04:10]} 20. Rxf6 {[%emt 0:00:14]} gxf6 {[%emt 0:00:13]} 21. Qxh6 {[%emt 0:03:15]} Qe7 {[%emt 0:00:25]} 22. Rf1 {[%emt 0:00:37]} Re8 {[%emt 0:05:25]} 23. Bh4 {[%emt 0:01:46]} Qf8 {[%emt 0:00:05]} 24. Qh5 {[%emt 0:00:23]} Qg7 {[%emt 0:01:28]} 25. Bxf6 {[%emt 0:00:30]} Qh7 {[%emt 0:00:09]} 26. Qg5+ {[%emt 0:00:23]} Qg6 {[%emt 0:04:25]} 27. Qh4 {[%emt 0:00:02]} Qh7 {[%emt 0:00:08]} 28. Qf4 {[%emt 0:00:54]} Nxb3 {[%emt 0:01:32]} 29. axb3 {[%emt 0:00:39]} Qh5 {[%emt 0:00:20]} 30. Nf3 {[%emt 0:00:27]} Ng4 {[%emt 0:00:40]} 31. e5 {[%emt 0:01:21]} Qf5 {[%emt 0:01:45]} 32. Qg3 {[%emt 0:01:14]} dxe5 {[%emt 0:00:57]} 33. Nd2 {[%emt 0:00:30]} Qg6 {[%emt 0:00:06]} 34. Nde4 {[%emt 0:00:21]} Kf8 {[%emt 0:00:41]} 35. Bg5 {[%emt 0:00:25]} f5 {[%emt 0:00:39]} 36. Qxg4 {[%emt 0:00:09]} Kg7 {[%emt 0:00:14]} 37. Bf6+ {[%emt 0:01:05]} Kh7 {[%emt 0:00:18]} 38. Qh4+ {[%emt 0:00:34]} Qh6 {[%emt 0:00:03]} 39. Qg3 {[%emt 0:00:31]} Rg8 {[%emt 0:00:39]} 40. Ng5+ {[%emt 0:00:00]} Kg6 {[%emt 0:00:00]} 41. Nce4 {[%emt 0:09:06]} Qh5 {[%emt 0:27:17]} 42. Nf3+ {[%emt 0:11:09]} Kf7 {[%emt 0:00:57]} 43. Nxe5+ {[%emt 0:01:17]} Kf8 {[%emt 0:00:01]} 44. Be7+ {[%emt 0:03:11]} Kxe7 {[%emt 0:00:02]} 45. Qxg8 {[%emt 0:00:09]} fxe4 {[%emt 0:00:07]} 46. Qf8# {[%emt 0:00:24]} 1-0

[Event "POL-chT 2 Liga 2019"]
[Site "Poronin"]
[Date "2019.09.12"]
[Round "6.34"]
[White "Polkowski, Piotr"]
[Black "Szoen, Dariusz"]
[Result "1-0"]
[ECO "A11"]
[WhiteElo "2109"]
[BlackElo "2415"]
[Annotator "NA"]
[PlyCount "91"]
[EventDate "2019.09.07"]
[EventType "team-tourn"]
[EventCountry "POL"]
[SourceTitle "playchess.com"]
[Source "ChessBase"]
[SourceQuality "1"]
[TimeControl "40/5400+30:1800+30"]

1. e4 {[%emt 0:00:00]} a6 {[%emt 0:00:46]} 2. Nc3 {[%emt 0:04:24]} b5 {[%emt 0:01:45]} 3. a4 {[%emt 0:06:23]} b4 {[%emt 0:01:13]} 4. Nce2 {[%emt 0:00:01]} Bb7 {[%emt 0:00:43]} 5. Ng3 {[%emt 0:01:18]} Nf6 {[%emt 0:05:28]} 6. e5 {[%emt 0:07:34]} Nd5 {[%emt 0:00:11]} 7. d4 {[%emt 0:00:10]} e6 {[%emt 0:00:34]} 8. Nf3 {[%emt 0:03:34]} d6 {[%emt 0:09:30]} 9. Bd3 {[%emt 0:04:54]} c5 {[%emt 0:01:35]} 10. exd6 {[%emt 0:22:19]} Bxd6 {[%emt 0:02:06]} 11. dxc5 {[%emt 0:00:37]} Bxc5 {[%emt 0:00:20]} 12. O-O {[%emt 0:00:10]} Nd7 {[%emt 0:04:25]} 13. Ng5 {[%emt 0:14:36]} N7f6 {[%emt 0:11:06]} 14. N3e4 {[%emt 0:00:18]} Nxe4 {[%emt 0:02:01]} 15. Nxe4 {[%emt 0:00:11]} Be7 {[%emt 0:01:33]} 16. Qg4 {[%emt 0:01:32]} g6 {[%emt 0:03:32]} 17. Qg3 {[%emt 0:02:03]} f5 {[%emt 0:08:53]} 18. Qe5 {[%emt 0:02:56]} Kf7 {[%emt 0:07:01]} 19. Ng3 {[%emt 0:10:44]} Bf6 {[%emt 0:01:04]} 20. Qe2 {[%emt 0:00:13]} Qd6 {[%emt 0:05:47]} 21. Re1 {[%emt 0:04:01]} Rhe8 {[%emt 0:04:09]} 22. f3 {[%emt 0:01:24]} Nf4 {[%emt 0:03:39]} 23. Bxf4 {[%emt 0:00:53]} Qxf4 {[%emt 0:00:02]} 24. Bc4 {[%emt 0:00:15]} Bd5 {[%emt 0:08:00]} 25. Bxa6 {[%emt 0:01:25]} Bxb2 {[%emt 0:01:03]} 26. Rad1 {[%emt 0:00:56]} Bc3 {[%emt 0:01:23]} 27. Rf1 {[%emt 0:00:02]} Kg7 {[%emt 0:04:46]} 28. Bb5 {[%emt 0:00:26]} Red8 {[%emt 0:00:31]} 29. Qf2 {[%emt 0:01:13]} Qc7 {[%emt 0:01:24]} 30. Ne2 {[%emt 0:00:39]} Bb2 {[%emt 0:00:45]} 31. Rd2 {[%emt 0:01:37]} Ba2 {[%emt 0:06:40]} 32. Rfd1 {[%emt 0:00:18]} Rxd2 {[%emt 0:00:02]} 33. Rxd2 {[%emt 0:00:05]} Rd8 {[%emt 0:00:16]} 34. Rxd8 {[%emt 0:02:08]} Qxd8 {[%emt 0:00:02]} 35. Qe1 {[%emt 0:00:22]} Qd6 {[%emt 0:00:20]} 36. Kf1 {[%emt 0:01:28]} Be5 {[%emt 0:01:09]} 37. Qc1 {[%emt 0:01:42]} Qc5 {[%emt 0:00:41]} 38. h3 {[%emt 0:01:26]} Kf7 {[%emt 0:01:10]} 39. Qd2 {[%emt 0:00:26]} Bd5 {[%emt 0:00:06]} 40. Qd3 {[%emt 0:00:00]} Bf6 {[%emt 0:00:00]} 41. Nf4 {[%emt 0:02:45]} Bh4 {[%emt 0:05:54]} 42. Qd2 {[%emt 0:05:33]} Ba2 {[%emt 0:09:22]} 43. Nd3 {[%emt 0:04:10]} Bc4 {[%emt 0:05:58]} 44. Bxc4 {[%emt 0:04:16]} Qxc4 {[%emt 0:00:05]} 45. Qxb4 {[%emt 0:00:30]} Qxc2 {[%emt 0:04:05]} 46. Ne5+ {[%emt 0:00:06]} 1-0

[Event "POL-chT 2 Liga 2019"]
[Site "Poronin"]
[Date "2019.09.12"]
[Round "6.35"]
[White "Gmaj, Krzysztof"]
[Black "Fraczek, Dariusz"]
[Result "1/2-1/2"]
[ECO "A40"]
[WhiteElo "2120"]
[BlackElo "2033"]
[Annotator "NA"]
[PlyCount "49"]
[EventDate "2019.09.07"]
[EventType "team-tourn"]
[EventCountry "POL"]
[SourceTitle "playchess.com"]
[Source "ChessBase"]
[SourceQuality "1"]
[TimeControl "40/5400+30:1800+30"]

1. d4 {[%emt 0:00:00]} e6 {[%emt 0:00:00]} 2. Nf3 {[%emt 0:00:00]} f5 {[%emt 0:00:03]} 3. e3 {[%emt 0:00:18]} Nf6 {[%emt 0:00:11]} 4. Be2 {[%emt 0:00:26]} b6 {[%emt 0:01:24]} 5. c4 {[%emt 0:02:23]} Bb7 {[%emt 0:00:32]} 6. O-O {[%emt 0:00:47]} Be7 {[%emt 0:03:04]} 7. Nc3 {[%emt 0:00:05]} O-O {[%emt 0:11:06]} 8. d5 {[%emt 0:00:28]} Bd6 {[%emt 0:04:55]} 9. a3 {[%emt 0:08:51]} a5 {[%emt 0:04:20]} 10. b3 {[%emt 0:03:10]} Na6 {[%emt 0:07:50]} 11. Bb2 {[%emt 0:01:33]} Nc5 {[%emt 0:22:06]} 12. Nd4 {[%emt 0:05:27]} Nfe4 {[%emt 0:05:58]} 13. Nxe4 {[%emt 0:08:03]} Nxe4 {[%emt 0:10:13]} 14. Nb5 {[%emt 0:03:32]} Be7 {[%emt 0:03:33]} 15. dxe6 {[%emt 0:07:37]} dxe6 {[%emt 0:00:03]} 16. Qxd8 {[%emt 0:04:13]} Raxd8 {[%emt 0:00:31]} 17. Rfd1 {[%emt 0:03:33]} c6 {[%emt 0:03:06]} 18. Nd4 {[%emt 0:01:08]} Kf7 {[%emt 0:01:53]} 19. Nf3 {[%emt 0:06:00]} Bf6 {[%emt 0:00:29]} 20. Ne5+ {[%emt 0:04:03]} Ke7 {[%emt 0:00:03]} 21. Bd3 {[%emt 0:04:46]} Nc5 {[%emt 0:05:14]} 22. Bc2 {[%emt 0:00:56]} Rxd1+ {[%emt 0:00:18]} 23. Rxd1 {[%emt 0:00:21]} Rd8 {[%emt 0:00:06]} 24. Bd4 {[%emt 0:06:52]} Nd7 {[%emt 0:01:43]} 25. Nxd7 {[%emt 0:04:45]} 1/2-1/2